{"text_format":"3","workbook":"xlsx","n_sheets":7,"sheets":["Senin","Selasa","Rabu","Kamis","Jumat","Sabtu","Minggu"],"not_rendered":{"defined_names":24},"read":"whole","date_system":"1900"}

{"sheet":"Senin","index":0,"n_rows":10,"n_cols":13,"rows_kept":10,"merged":[[1,1,2,1],[1,2,1,10],[1,11,1,12],[2,2,2,10],[2,11,2,12]]}
[null,"JADWAL SHIFT"]
[null,"SENIN","Untuk Minggu dari: ",{"$nulls":8},"TANGGAL"]
[null,null,"Nama Departemen: ",{"$nulls":8},"DEPARTEMEN"]
[null,"Nama Karyawan","07.00","08.00","09.00","10.00","11.00","12.00","13.00","14.00","15.00","Sakit?","TOTAL"]
[null,"Kania F","manajer","manajer","manajer","manajer","manajer","manajer","manajer","manajer","manajer",null,{"$f":"IFERROR(COUNTIF(Senin[[#This Row],[07.00]:[15.00]],\"*\"),\"\")","v":9}]
[null,"Toni Y",null,"kasir","kasir","kasir","kasir",{"$nulls":5},{"$f":"IFERROR(COUNTIF(Senin[[#This Row],[07.00]:[15.00]],\"*\"),\"\")","v":4}]
[null,"Jafran S",null,"meja resepsionis","meja resepsionis","meja resepsionis","meja resepsionis ","meja resepsionis","meja resepsionis","meja resepsionis",null,null,{"$f":"IFERROR(COUNTIF(Senin[[#This Row],[07.00]:[15.00]],\"*\"),\"\")","v":7}]
[null,"Jaka M",null,"meja resepsionis","meja resepsionis","meja resepsionis","meja resepsionis ","meja resepsionis","meja resepsionis","meja resepsionis",null,null,{"$f":"IFERROR(COUNTIF(Senin[[#This Row],[07.00]:[15.00]],\"*\"),\"\")","v":7}]
[null,"Seno P",{"$nulls":10},{"$f":"IFERROR(COUNTIF(Senin[[#This Row],[07.00]:[15.00]],\"*\"),\"\")","v":0}]
[null,"Tiara A",{"$nulls":5},"kasir","kasir","kasir","kasir",null,{"$f":"IFERROR(COUNTIF(Senin[[#This Row],[07.00]:[15.00]],\"*\"),\"\")","v":4}]

{"sheet":"Selasa","index":1,"n_rows":10,"n_cols":13,"rows_kept":10,"merged":[[1,1,2,1],[1,2,1,10],[1,11,1,12],[2,2,2,10],[2,11,2,12]]}
[null,{"$f":"SHIFT_SCHEDULE_Title","v":"JADWAL SHIFT"}]
[null,"SELASA","Untuk Minggu dari: ",{"$nulls":8},{"$f":"TANGGAL","v":"TANGGAL"}]
[null,null,"Nama Departemen: ",{"$nulls":8},{"$f":"DEPARTEMEN","v":"DEPARTEMEN"}]
[null,"Nama Karyawan","07.00","08.00","09.00","10.00","11.00","12.00","13.00","14.00","15.00","Sakit?","TOTAL"]
[null,"Kania F","manajer","manajer","manajer","manajer","manajer","manajer","manajer","manajer","manajer",null,{"$f":"IFERROR(COUNTIF(Selasa[[#This Row],[07.00]:[15.00]],\"*\"),\"\")","v":9}]
[null,"Toni Y",null,"kasir","kasir","kasir","kasir",{"$nulls":5},{"$f":"IFERROR(COUNTIF(Selasa[[#This Row],[07.00]:[15.00]],\"*\"),\"\")","v":4}]
[null,"Jafran S",null,"meja resepsionis","meja resepsionis","meja resepsionis","meja resepsionis ","meja resepsionis","meja resepsionis","meja resepsionis",null,null,{"$f":"IFERROR(COUNTIF(Selasa[[#This Row],[07.00]:[15.00]],\"*\"),\"\")","v":7}]
[null,"Jaka M",null,"meja resepsionis","meja resepsionis","meja resepsionis","meja resepsionis ","meja resepsionis","meja resepsionis","meja resepsionis",null,null,{"$f":"IFERROR(COUNTIF(Selasa[[#This Row],[07.00]:[15.00]],\"*\"),\"\")","v":7}]
[null,"Seno P",{"$nulls":9},"Sakit",{"$f":"IFERROR(COUNTIF(Selasa[[#This Row],[07.00]:[15.00]],\"*\"),\"\")","v":0}]
[null,"Tiara A",{"$nulls":5},"kasir","kasir","kasir","kasir",null,{"$f":"IFERROR(COUNTIF(Selasa[[#This Row],[07.00]:[15.00]],\"*\"),\"\")","v":4}]

{"sheet":"Rabu","index":2,"n_rows":10,"n_cols":13,"rows_kept":10,"merged":[[1,1,2,1],[1,2,1,10],[1,11,1,12],[2,2,2,10],[2,11,2,12]]}
[null,{"$f":"SHIFT_SCHEDULE_Title","v":"JADWAL SHIFT"}]
[null,"RABU","Untuk Minggu dari: ",{"$nulls":8},{"$f":"TANGGAL","v":"TANGGAL"}]
[null,null,"Nama Departemen: ",{"$nulls":8},{"$f":"DEPARTEMEN","v":"DEPARTEMEN"}]
[null,"Nama Karyawan","07.00","08.00","09.00","10.00","11.00","12.00","13.00","14.00","15.00","Sakit?","TOTAL"]
[null,"Kania F","manajer","manajer","manajer","manajer","manajer","manajer","manajer","manajer","manajer",null,{"$f":"IFERROR(COUNTIF(Rabu[[#This Row],[07.00]:[15.00]],\"*\"),\"\")","v":9}]
[null,"Toni Y",null,"kasir","kasir","kasir","kasir",{"$nulls":5},{"$f":"IFERROR(COUNTIF(Rabu[[#This Row],[07.00]:[15.00]],\"*\"),\"\")","v":4}]
[null,"Jafran S",null,"meja resepsionis","meja resepsionis","meja resepsionis","meja resepsionis ","meja resepsionis","meja resepsionis","meja resepsionis",null,null,{"$f":"IFERROR(COUNTIF(Rabu[[#This Row],[07.00]:[15.00]],\"*\"),\"\")","v":7}]
[null,"Jaka M",null,"meja resepsionis","meja resepsionis","meja resepsionis","meja resepsionis ","meja resepsionis","meja resepsionis","meja resepsionis",null,null,{"$f":"IFERROR(COUNTIF(Rabu[[#This Row],[07.00]:[15.00]],\"*\"),\"\")","v":7}]
[null,"Seno P",{"$nulls":9},"Sakit",{"$f":"IFERROR(COUNTIF(Rabu[[#This Row],[07.00]:[15.00]],\"*\"),\"\")","v":0}]
[null,"Tiara A",{"$nulls":5},"kasir","kasir","kasir","kasir",null,{"$f":"IFERROR(COUNTIF(Rabu[[#This Row],[07.00]:[15.00]],\"*\"),\"\")","v":4}]

{"sheet":"Kamis","index":3,"n_rows":10,"n_cols":13,"rows_kept":10,"merged":[[1,1,2,1],[1,2,1,10],[1,11,1,12],[2,2,2,10],[2,11,2,12]]}
[null,{"$f":"SHIFT_SCHEDULE_Title","v":"JADWAL SHIFT"}]
[null,"KAMIS","Untuk Minggu dari: ",{"$nulls":8},{"$f":"TANGGAL","v":"TANGGAL"}]
[null,null,"Nama Departemen: ",{"$nulls":8},{"$f":"DEPARTEMEN","v":"DEPARTEMEN"}]
[null,"Nama Karyawan","07.00","08.00","09.00","10.00","11.00","12.00","13.00","14.00","15.00","Sakit?","TOTAL"]
[null,"Kania F","manajer","manajer","manajer","manajer","manajer","manajer","manajer","manajer","manajer",null,{"$f":"IFERROR(COUNTIF(Kamis[[#This Row],[07.00]:[15.00]],\"*\"),\"\")","v":9}]
[null,"Toni Y",null,"kasir","kasir","kasir","kasir",{"$nulls":5},{"$f":"IFERROR(COUNTIF(Kamis[[#This Row],[07.00]:[15.00]],\"*\"),\"\")","v":4}]
[null,"Jafran S",null,"meja resepsionis","meja resepsionis","meja resepsionis","meja resepsionis ","meja resepsionis","meja resepsionis","meja resepsionis",null,null,{"$f":"IFERROR(COUNTIF(Kamis[[#This Row],[07.00]:[15.00]],\"*\"),\"\")","v":7}]
[null,"Jaka M",null,"meja resepsionis","meja resepsionis","meja resepsionis","meja resepsionis ","meja resepsionis","meja resepsionis","meja resepsionis",null,null,{"$f":"IFERROR(COUNTIF(Kamis[[#This Row],[07.00]:[15.00]],\"*\"),\"\")","v":7}]
[null,"Seno P",{"$nulls":9},"Sakit",{"$f":"IFERROR(COUNTIF(Kamis[[#This Row],[07.00]:[15.00]],\"*\"),\"\")","v":0}]
[null,"Tiara A",{"$nulls":5},"kasir","kasir","kasir","kasir",null,{"$f":"IFERROR(COUNTIF(Kamis[[#This Row],[07.00]:[15.00]],\"*\"),\"\")","v":4}]

{"sheet":"Jumat","index":4,"n_rows":10,"n_cols":13,"rows_kept":10,"merged":[[1,1,2,1],[1,2,1,10],[1,11,1,12],[2,2,2,10],[2,11,2,12]]}
[null,{"$f":"SHIFT_SCHEDULE_Title","v":"JADWAL SHIFT"}]
[null,"JUMAT","Untuk Minggu dari: ",{"$nulls":8},{"$f":"TANGGAL","v":"TANGGAL"}]
[null,null,"Nama Departemen: ",{"$nulls":8},{"$f":"DEPARTEMEN","v":"DEPARTEMEN"}]
[null,"Nama Karyawan","07.00","08.00","09.00","10.00","11.00","12.00","13.00","14.00","15.00","Sakit?","TOTAL"]
[null,"Kania F","manajer","manajer","manajer","manajer","manajer","manajer","manajer","manajer","manajer",null,{"$f":"IFERROR(COUNTIF(Jumat[[#This Row],[07.00]:[15.00]],\"*\"),\"\")","v":9}]
[null,"Toni Y",null,"kasir","kasir","kasir","kasir",{"$nulls":5},{"$f":"IFERROR(COUNTIF(Jumat[[#This Row],[07.00]:[15.00]],\"*\"),\"\")","v":4}]
[null,"Jafran S",null,"meja resepsionis","meja resepsionis","meja resepsionis","meja resepsionis ","meja resepsionis","meja resepsionis","meja resepsionis",null,null,{"$f":"IFERROR(COUNTIF(Jumat[[#This Row],[07.00]:[15.00]],\"*\"),\"\")","v":7}]
[null,"Jaka M",null,"meja resepsionis","meja resepsionis","meja resepsionis","meja resepsionis ","meja resepsionis","meja resepsionis","meja resepsionis",null,null,{"$f":"IFERROR(COUNTIF(Jumat[[#This Row],[07.00]:[15.00]],\"*\"),\"\")","v":7}]
[null,"Seno P",{"$nulls":9},"Sakit",{"$f":"IFERROR(COUNTIF(Jumat[[#This Row],[07.00]:[15.00]],\"*\"),\"\")","v":0}]
[null,"Tiara A",{"$nulls":5},"kasir","kasir","kasir","kasir",null,{"$f":"IFERROR(COUNTIF(Jumat[[#This Row],[07.00]:[15.00]],\"*\"),\"\")","v":4}]

{"sheet":"Sabtu","index":5,"n_rows":10,"n_cols":13,"rows_kept":10,"merged":[[1,1,2,1],[1,2,1,10],[1,11,1,12],[2,2,2,10],[2,11,2,12]]}
[null,{"$f":"SHIFT_SCHEDULE_Title","v":"JADWAL SHIFT"}]
[null,"SABTU","Untuk Minggu dari: ",{"$nulls":8},{"$f":"TANGGAL","v":"TANGGAL"}]
[null,null,"Nama Departemen: ",{"$nulls":8},{"$f":"DEPARTEMEN","v":"DEPARTEMEN"}]
[null,"Nama Karyawan","07.00","08.00","09.00","10.00","11.00","12.00","13.00","14.00","15.00","Sakit?","TOTAL"]
[null,"Kania F","manajer","manajer","manajer","manajer","manajer","manajer","manajer","manajer","manajer",null,{"$f":"IFERROR(COUNTIF(Sabtu[[#This Row],[07.00]:[15.00]],\"*\"),\"\")","v":9}]
[null,"Toni Y",null,"kasir","kasir","kasir","kasir",{"$nulls":5},{"$f":"IFERROR(COUNTIF(Sabtu[[#This Row],[07.00]:[15.00]],\"*\"),\"\")","v":4}]
[null,"Jafran S",null,"meja resepsionis","meja resepsionis","meja resepsionis","meja resepsionis ","meja resepsionis","meja resepsionis","meja resepsionis",null,null,{"$f":"IFERROR(COUNTIF(Sabtu[[#This Row],[07.00]:[15.00]],\"*\"),\"\")","v":7}]
[null,"Jaka M",null,"meja resepsionis","meja resepsionis","meja resepsionis","meja resepsionis ","meja resepsionis","meja resepsionis","meja resepsionis",null,null,{"$f":"IFERROR(COUNTIF(Sabtu[[#This Row],[07.00]:[15.00]],\"*\"),\"\")","v":7}]
[null,"Seno P",{"$nulls":9},"Sakit",{"$f":"IFERROR(COUNTIF(Sabtu[[#This Row],[07.00]:[15.00]],\"*\"),\"\")","v":0}]
[null,"Tiara A",{"$nulls":5},"kasir","kasir","kasir","kasir",null,{"$f":"IFERROR(COUNTIF(Sabtu[[#This Row],[07.00]:[15.00]],\"*\"),\"\")","v":4}]

{"sheet":"Minggu","index":6,"n_rows":10,"n_cols":13,"rows_kept":10,"merged":[[1,1,2,1],[1,2,1,10],[1,11,1,12],[2,2,2,10],[2,11,2,12]]}
[null,{"$f":"SHIFT_SCHEDULE_Title","v":"JADWAL SHIFT"}]
[null,"MINGGU","Untuk Minggu dari: ",{"$nulls":8},{"$f":"TANGGAL","v":"TANGGAL"}]
[null,null,"Nama Departemen: ",{"$nulls":8},{"$f":"DEPARTEMEN","v":"DEPARTEMEN"}]
[null,"Nama Karyawan","07.00","08.00","09.00","10.00","11.00","12.00","13.00","14.00","15.00","Sakit?","TOTAL"]
[null,"Kania F","manajer","manajer","manajer","manajer","manajer","manajer","manajer","manajer","manajer",null,{"$f":"IFERROR(COUNTIF(Minggu[[#This Row],[07.00]:[15.00]],\"*\"),\"\")","v":9}]
[null,"Toni Y",null,"kasir","kasir","kasir","kasir",{"$nulls":5},{"$f":"IFERROR(COUNTIF(Minggu[[#This Row],[07.00]:[15.00]],\"*\"),\"\")","v":4}]
[null,"Jafran S",null,"meja resepsionis","meja resepsionis","meja resepsionis","meja resepsionis ","meja resepsionis","meja resepsionis","meja resepsionis",null,null,{"$f":"IFERROR(COUNTIF(Minggu[[#This Row],[07.00]:[15.00]],\"*\"),\"\")","v":7}]
[null,"Jaka M",null,"meja resepsionis","meja resepsionis","meja resepsionis","meja resepsionis ","meja resepsionis","meja resepsionis","meja resepsionis",null,null,{"$f":"IFERROR(COUNTIF(Minggu[[#This Row],[07.00]:[15.00]],\"*\"),\"\")","v":7}]
[null,"Seno P",{"$nulls":9},"Sakit",{"$f":"IFERROR(COUNTIF(Minggu[[#This Row],[07.00]:[15.00]],\"*\"),\"\")","v":0}]
[null,"Tiara A",{"$nulls":5},"kasir","kasir","kasir","kasir",null,{"$f":"IFERROR(COUNTIF(Minggu[[#This Row],[07.00]:[15.00]],\"*\"),\"\")","v":4}]